lending/lending_fUSD_20251218
["ID","MTS","AMOUNT","RATE_DAILY","PERIOD"]
[398961603,1766025039604,-778.52479433,0.00017,2]
[398961604,1766025039711,-439.30570007,0.00017,2]
[398961605,1766025039723,-650.61947478,0.00017,2]
[398961607,1766025042408,-573.16702032,0.00017,2]
[398961608,1766025042423,-489.64607935,0.00017,2]
[398961609,1766025042478,-485.305,0.00017,2]
[398961610,1766025042637,-736.43301719,0.00017,2]
[398961613,1766025045463,-263204.63806306,0.00017,2]
[398961614,1766025045473,-14502.61915686,0.00017,2]
[398961651,1766025091374,300.0,0.00023,120]
[398961657,1766025689171,336.41523583,0.00022,30]
[398961658,1766025725314,182.19,7.95e-05,2]
[398961662,1766025989204,25816.67,0.00023,120]
[398961665,1766026231501,-188.56991517,0.00015473,2]
[398961666,1766026231512,-500.0,0.00015473,2]
[398961667,1766026231522,-300.0,0.00015518,2]
[398961668,1766026231531,-21.63008483,0.00015564,2]
[398961669,1766026231543,-145.02991517,0.00015564,2]
[398961670,1766026231552,-300.0,0.00015834,2]
[398961671,1766026231561,-1852.42,0.00015883,2]
[398961672,1766026231570,-166.66,0.00015892,2]
[398961673,1766026231580,-200.0,0.00015907,2]
[398961674,1766026231590,-369.33732772,0.00016021,2]
[398961675,1766026231600,-166.66,0.00016219,2]
[398961676,1766026231609,-707.5,0.00016242,2]
[398961677,1766026231618,-300.0,0.00016437,2]
[398961678,1766026231627,-101.21373199,0.00016437,2]
[398961679,1766026231639,-312.0,0.00016437,2]
[398961680,1766026231651,-279.78626801,0.00016437,2]
[398961681,1766026231661,-658.80000168,0.00016438,2]
[398961682,1766026231684,-1420.2,0.00016438,2]
[398961683,1766026231712,-1850.0,0.00016438,2]
[398961684,1766026231724,-709.0,0.00016438,2]
[398961686,1766026237645,-359.68111348,0.00015801,3]
[398961687,1766026237699,-639.31888652,0.00015801,3]
[398961688,1766026237708,-1364.2629872,0.00016438,2]
[398961689,1766026237719,-252.93701112,0.00016438,2]
[398961690,1766026237729,-1000.0,0.000165,2]
[398961691,1766026237737,-166.66,0.00016547,2]
[398961692,1766026237747,-203.77230882,0.00016712,2]
[398961693,1766026237756,-550.0,0.00016723,2]
[398961694,1766026237765,-150.99,0.00016724,2]
[398961695,1766026237774,-9999.99,0.00016724,2]
[398961696,1766026237783,-150.99,0.00016724,2]
[398961697,1766026237794,-1096.37,0.00016724,2]
[398961698,1766026237804,-9999.99,0.00016724,2]
[398961699,1766026237814,-150.0,0.00016725,2]
[398961700,1766026237823,-500.0,0.00016725,2]
[398961701,1766026237832,-150.0,0.00016725,2]
[398961702,1766026237841,-182.51120638,0.00016725,2]
[398961703,1766026237850,-152.95584355,0.00016725,2]
[398961704,1766026237860,-150.0,0.00016725,2]
[398961705,1766026237869,-150.0,0.00016725,2]
[398961742,1766026238285,-152.13871145,0.00016725,2]
[398961744,1766026238304,-271.58094609,0.00016725,2]
[398961746,1766026238314,-150.0,0.00016725,2]
[398961748,1766026238324,-150.0,0.00016725,2]
[398961750,1766026238333,-500.0,0.00016725,2]
[398961752,1766026238342,-155.23568511,0.00016725,2]
[398961753,1766026238351,-500.0,0.00016725,2]
[398961755,1766026238360,-156.79440014,0.00016725,2]
[398961756,1766026238370,-500.0,0.00016725,2]
[398961757,1766026238379,-150.0,0.00016725,2]
[398961758,1766026238388,-150.0,0.00016725,2]
[398961759,1766026238397,-500.0,0.00016725,2]
[398961760,1766026238407,-150.0,0.00016725,2]
[398961761,1766026238416,-150.0,0.00016725,2]
[398961762,1766026238425,-500.0,0.00016725,2]
[398961763,1766026238434,-500.0,0.00016725,2]
[398961764,1766026238446,-150.0,0.00016725,2]
[398961765,1766026238455,-389.56,0.00016725,2]
[398961766,1766026238465,-721.72,0.00016765,2]
[398961767,1766026238474,-500.0,0.00016862,2]
[398961768,1766026238484,-150.0,0.00016862,2]
[398961769,1766026238493,-500.0,0.00016862,2]
[398961770,1766026238502,-150.0,0.00016862,2]
[398961771,1766026238511,-150.0,0.00016862,2]
[398961772,1766026238522,-150.0,0.00016862,2]
[398961773,1766026238531,-207.73218504,0.00016862,2]
[398961774,1766026238540,-500.0,0.00016862,2]
[398961775,1766026238549,-500.0,0.00016862,2]
[398961776,1766026238558,-500.0,0.00016862,2]
[398961777,1766026238567,-150.0,0.00016862,2]
[398961778,1766026238577,-150.0,0.00016862,2]
[398961779,1766026238586,-500.0,0.00016862,2]
[398961780,1766026238595,-500.0,0.00016862,2]
[398961781,1766026238604,-500.0,0.00016862,2]
[398961782,1766026238613,-150.0,0.00016862,2]
[398961783,1766026238622,-166.66,0.00016875,2]
[398961784,1766026238635,-151.0,0.00016879,2]
[398961785,1766026238644,-151.0,0.00016879,2]
[398961786,1766026238653,-151.0,0.00016879,2]
[398961787,1766026238663,-151.0,0.00016879,2]
[398961788,1766026238672,-151.0,0.00016879,2]
[398961789,1766026238681,-151.0,0.00016879,2]
[398961790,1766026238691,-151.0,0.00016879,2]
[398961791,1766026238700,-151.0,0.00016879,2]
[398961792,1766026238710,-172.13215309,0.00016879,2]
[398961793,1766026238720,-8843.56103373,0.00016889,2]
[398961794,1766026238729,-2320.5657,0.00016889,2]
[398961795,1766026238738,-274.39356273,0.000169,2]
[398961796,1766026238748,-200.0,0.00016962,2]
[398961797,1766026238758,-403.39183889,0.00016985,2]
[398961798,1766026238767,-500.0,0.00016985,2]
[398961799,1766026238777,-500.0,0.00016985,2]
[398961800,1766026238786,-500.0,0.00016985,2]
[398961801,1766026238796,-500.0,0.00016985,2]
[398961802,1766026238805,-500.0,0.00016985,2]
[398961803,1766026238814,-500.0,0.00016985,2]
[398961804,1766026238824,-500.0,0.00016985,2]
[398961805,1766026238834,-500.0,0.00016985,2]
[398961806,1766026238843,-500.0,0.00016985,2]
[398961807,1766026238853,-500.0,0.00016985,2]
[398961808,1766026238866,-500.0,0.00016985,2]
[398961809,1766026238876,-250.0,0.00016985,2]
[398961810,1766026238886,-531.4855453,0.00016985,2]
[398961811,1766026238896,-500.0,0.00016985,2]
[398961812,1766026238906,-500.0,0.00016985,2]
[398961813,1766026238916,-500.0,0.00016985,2]
[398961814,1766026238927,-500.0,0.00016985,2]
[398961815,1766026238937,-500.0,0.00016985,2]
[398961816,1766026238948,-500.0,0.00016985,2]
[398961817,1766026238958,-500.0,0.00016985,2]
[398961818,1766026238969,-500.0,0.00016985,2]
[398961819,1766026238979,-500.0,0.00016985,2]
[398961820,1766026238990,-500.0,0.00016985,2]
[398961821,1766026239000,-151.0,0.00016986,2]
[398961822,1766026239011,-576.22049189,0.00016988,2]
[398961823,1766026239022,-779.386972,0.00016989,2]
[398961824,1766026239032,-93610.16105302,0.00016989,2]
[398961825,1766026239050,-11885.00065939,0.00016989,2]
[398961832,1766026239766,-4582.41031323,0.00016989,2]
[398961833,1766026239783,-750.0,0.00016989,2]
[398961834,1766026239796,-5682.67816953,0.00016989,2]
[398961835,1766026239910,-9819.34607684,0.00016989,2]
[398961844,1766026242688,-203.77230882,0.00016873,2]
[398961845,1766026242698,-70.61557492,0.00016932,2]
[398961852,1766026245611,-2834.28741107,0.00016932,2]
[398961853,1766026245622,-1511.52386639,0.00016989,2]
[398961854,1766026245717,-1821.37,0.00016989,2]
[398961855,1766026245877,-798.8370647,0.00016989,2]
[398961856,1766026245931,-1869.7001,0.00016989,2]
[398961859,1766027348873,157.99045863,0.00022,60]
[398961863,1766027431683,-670.93,0.00013699,2]
[398961865,1766027431692,-300.0,0.00014249,2]
[398961867,1766027431702,-1000.0,0.000148,2]
[398961869,1766027431711,-300.0,0.00015068,2]
[398961871,1766027431720,-250.0,0.00015068,2]
[398961873,1766027431729,-279.07,0.00015068,2]
[398961904,1766027437730,-20.93,0.00015068,2]
[398961905,1766027437739,-151.37405421,0.00015068,2]
[398961906,1766027437749,-17827.29594579,0.00015722,2]
[398961907,1766027437759,-11995.42433858,0.00015722,2]
[398961908,1766027437786,-26138.94971563,0.00015722,2]
[398961909,1766027437796,-2552.17,0.00015792,2]
[398961910,1766027437806,-1200.0,0.00015855,2]
[398961911,1766027437815,-2652.92,0.00015856,2]
[398961912,1766027437823,-300.0,0.00015911,2]
[398961913,1766027437832,-1513.46028187,0.00015912,2]
[398961914,1766027437843,-1260.78888652,0.00015912,2]
[398961915,1766027437854,-309.60591375,0.00015912,2]
[398961916,1766027437868,-1283.93491786,0.00015912,2]
[398961917,1766027437878,-207.37,0.00015947,3]
[398961918,1766027437887,-989.12282779,0.0001603,2]
[398961919,1766027437898,-3637.15312271,0.0001603,2]
[398961920,1766027437911,-1733.86308309,0.0001603,2]
[398961923,1766027438059,-151.52,0.00015831,2]
[398961925,1766027438071,-101.9250449,0.0001603,2]
[398961927,1766027438082,-450.58499,0.0001603,2]
[398961929,1766027438093,-1199.44426882,0.0001603,2]
[398961979,1766027439856,-500.0,0.00016029,2]
[398961980,1766027439867,-500.0,0.00016029,2]
[398961981,1766027439878,-25.70825858,0.00016029,2]
[398961982,1766027439971,-474.29174142,0.00016029,2]
[398961983,1766027439983,-500.0,0.00016029,2]
[398961984,1766027439992,-500.0,0.00016029,2]
[398961985,1766027440001,-442.8840316,0.00016029,2]
[398961986,1766027440010,-500.0,0.00016029,2]
[398961987,1766027440021,-500.0,0.00016029,2]
[398961988,1766027440030,-500.0,0.00016029,2]
[398961989,1766027440041,-500.0,0.00016029,2]
[398961990,1766027440050,-5058.23009799,0.0001603,2]
[398961991,1766027440066,-8763.45477203,0.0001603,2]
[398961992,1766027440093,-2257.94179267,0.0001603,2]
[398961993,1766027440102,-150.0,0.00016253,2]
[398961994,1766027440111,-299.99,0.00016311,4]
[398961995,1766027440121,-500.0,0.00016438,2]
[398961996,1766027440130,-318.35384694,0.00016438,2]
[398961998,1766027440139,-165.75,0.0001648,2]
[398961999,1766027440148,-284.18,0.00016595,2]
[398962000,1766027440157,-150.0,0.00016703,2]
[398962001,1766027440166,-232.97899023,0.00016703,2]
[398962002,1766027440176,-500.0,0.00016703,2]
[398962003,1766027440185,-500.0,0.00016703,2]
[398962004,1766027440194,-150.0,0.00016703,2]
[398962005,1766027440203,-150.0,0.00016703,2]
[398962006,1766027440212,-164.38534884,0.00016703,2]
[398962007,1766027440221,-500.0,0.00016703,2]
[398962008,1766027440231,-263.76417438,0.00016703,2]
[398962009,1766027440240,-150.0,0.00016703,2]
[398962010,1766027440250,-500.0,0.00016703,2]
[398962011,1766027440259,-516.0,0.00016703,2]
[398962012,1766027440268,-500.0,0.00016703,2]
[398962013,1766027440278,-550.0,0.00016704,2]
[398962014,1766027440287,-366.52,0.00016706,2]
[398962015,1766027440297,-151.52,0.0001671,2]
[398962016,1766027440306,-150.0,0.00016715,2]
[398962017,1766027440315,-150.0,0.00016715,2]
[398962018,1766027440324,-500.0,0.00016715,2]
[398962019,1766027440334,-500.0,0.00016715,2]
[398962020,1766027440343,-150.0,0.0001684,2]
[398962021,1766027440352,-500.0,0.0001684,2]
[398962022,1766027440361,-500.0,0.0001684,2]
[398962023,1766027440370,-150.0,0.0001684,2]
[398962024,1766027440379,-500.0,0.0001684,2]
[398962025,1766027440388,-500.0,0.0001684,2]
[398962026,1766027440397,-516.0,0.0001684,2]
[398962027,1766027440406,-500.0,0.0001684,2]
[398962028,1766027440414,-150.0,0.00016852,2]
[398962029,1766027440423,-150.0,0.00016852,2]
[398962030,1766027440432,-500.0,0.00016852,2]
[398962031,1766027440441,-500.0,0.00016852,2]
[398962032,1766027440450,-7959.20493033,0.0001688,2]
[398962033,1766027440459,-151.0,0.00016976,2]
[398962034,1766027440468,-150.0,0.00016977,2]
[398962035,1766027440478,-607.63880626,0.00016977,2]
[398962036,1766027440487,-156.15983667,0.00016977,2]
[398962037,1766027440875,-150.0,0.00016977,2]
[398962038,1766027440886,-343.87667638,0.00016977,2]
[398962039,1766027440895,-580.65197685,0.00016977,2]
[398962040,1766027440906,-516.0,0.00016977,2]
[398962041,1766027440917,-500.0,0.00016977,2]
[398962042,1766027440927,-532.97523105,0.00016977,2]
[398962043,1766027440936,-151.0,0.00016977,2]
[398962044,1766027440945,-154.1684502,0.00016977,2]
[398962045,1766027440957,-1344.9913614,0.0001698,2]
[398962046,1766027440967,-2360.0419739,0.0001698,2]
[398962047,1766027440977,-26670.0167088,0.0001698,2]
[398962048,1766027440988,-12012.616894,0.0001698,2]
[398962049,1766027440998,-366.52,0.0001698,2]
[398962050,1766027441008,-1692.1465397,0.0001698,2]
[398962051,1766027441017,-26928.5893551,0.0001698,2]
[398962052,1766027441028,-151.0,0.0001698,2]
[398962053,1766027441037,-500.0,0.00016988,2]
[398962054,1766027441047,-500.0,0.00016988,2]
[398962055,1766027441057,-500.0,0.00016988,2]
[398962056,1766027441067,-500.0,0.00016988,2]
[398962057,1766027441076,-500.0,0.00016988,2]
[398962058,1766027441085,-526.53,0.00016988,2]
[398962059,1766027441095,-500.0,0.00016988,2]
[398962060,1766027441104,-500.0,0.00016988,2]
[398962061,1766027441114,-500.0,0.00016988,2]
[398962062,1766027441123,-500.0,0.00016988,2]
[398962063,1766027441133,-227.94355761,0.00016989,2]
[398962064,1766027441143,-281.7442786,0.00016989,2]
[398962065,1766027441152,-500.0,0.00016989,2]
[398962066,1766027441161,-500.0,0.00016989,2]
[398962067,1766027441171,-200.0,0.00016989,2]
[398962068,1766027441182,-1258.12814355,0.00016989,2]
[398962069,1766027441192,-200.0,0.00016989,2]
[398962070,1766027441201,-245.88799689,0.00016989,2]
[398962071,1766027441211,-276.38338364,0.00016989,2]
[398962072,1766027441220,-500.0,0.00016998,2]
[398962073,1766027441229,-499.999999,0.00016999,2]
[398962074,1766027441238,-72358.51298399,0.00017,2]
[398962075,1766027441247,-250.0,0.00017,2]
[398962076,1766027441257,-2000.0,0.00017,2]
[398962077,1766027441266,-220.426556,0.00017,2]
[398962078,1766027441276,-151.0,0.00017,2]
[398962079,1766027441286,-151.0,0.00017,2]
[398962080,1766027441296,-151.0,0.00017,2]
[398962081,1766027441305,-212.79607,0.00017,2]
[398962082,1766027441315,-151.0,0.00017,2]
[398962083,1766027441324,-299.645139,0.00017,2]
[398962084,1766027441333,-185.180751,0.00017,2]
[398962085,1766027441343,-152.06303999,0.00017114,2]
[398962086,1766027441352,-205.67905347,0.00017114,2]
[398962087,1766027441362,-516.0,0.00017114,2]
[398962088,1766027441371,-500.0,0.00017114,2]
[398962089,1766027441381,-284.67838305,0.00017126,2]
[398962090,1766027441390,-500.0,0.00017126,2]
[398962091,1766027441399,-200.0,0.00017159,2]
[398962092,1766027441408,-166.66,0.00017202,2]
[398962093,1766027441418,-516.0,0.00017251,2]
[398962094,1766027441426,-500.0,0.00017251,2]
[398962095,1766027441435,-366.52,0.00017254,2]
[398962096,1766027441444,-500.0,0.00017263,2]
[398962097,1766027441453,-200.0,0.0001733,2]
[398962098,1766027441463,-165.75,0.00017386,2]
[398962099,1766027441472,-516.0,0.00017388,2]
[398962100,1766027441481,-516.08026897,0.00017388,2]
[398962101,1766027441490,-420.0,0.00017397,2]
[398962102,1766027441499,-1600.0,0.00017399,2]
[398962103,1766027441508,-168.16818845,0.000174,2]
[398962104,1766027441517,-516.0,0.00017525,2]
[398962105,1766027441527,-366.52,0.00017528,2]
[398962106,1766027441536,-151.52,0.0001759,2]
[398962107,1766027441544,-516.0,0.00017662,2]
[398962108,1766027441554,-7248.19034845,0.00017691,2]
[398962109,1766027441563,-451.0,0.000177,5]
[398962110,1766027441572,-403.35434432,0.0001779,2]
[398962111,1766027441581,-56442.63748711,0.00017791,2]
[398962112,1766027441590,-151.0,0.00017791,2]
[398962113,1766027441600,-156.011632,0.00017791,2]
[398962114,1766027441609,-151.0,0.00017791,2]
[398962115,1766027441618,-151.0,0.00017791,2]
[398962116,1766027441627,-154.757544,0.00017791,2]
[398962117,1766027441636,-516.0,0.00017799,2]
[398962118,1766027441645,-366.55964,0.00017802,2]
[398962119,1766027441654,-935.0,0.00017806,2]
[398962120,1766027441663,-249.61718049,0.00017851,2]
[398962121,1766027441673,-516.0,0.00017936,2]
[398962122,1766027441683,-516.0,0.00018073,2]
[398962123,1766027441692,-1000.0,0.00018082,2]
[398962124,1766027441701,-516.0,0.0001821,2]
[398962125,1766027441710,-165.75,0.00018293,2]
[398962126,1766027441719,-516.0,0.00018347,2]
[398962127,1766027441728,-151.52,0.00018469,2]
[398962128,1766027441738,-516.0,0.00018484,2]
[398962129,1766027441747,-516.0,0.00018621,2]
[398962130,1766027441757,-516.0,0.00018758,2]
[398962131,1766027441767,-1000.0,0.0001876,2]
[398962132,1766027441776,-318.32373006,0.00018841,2]
[398962133,1766027441787,-398.27098009,0.00018841,2]
[398962134,1766027441797,-177.5588823,0.00018841,2]
[398962135,1766027441807,-9299.88969021,0.0001885,2]
[398962136,1766027441817,-1739.70705038,0.0001885,2]
[398962137,1766027441826,-2000.0,0.0001885,2]
[398962138,1766027441836,-200.0,0.0001885,2]
[398962139,1766027441845,-151.22392965,0.0001885,2]
[398962140,1766027441854,-2000.0,0.0001885,2]
[398962141,1766027441864,-207.4,0.0001885,2]
[398962142,1766027441873,-620.0,0.0001885,2]
[398962143,1766027441885,-1000.0,0.0001885,2]
[398962144,1766027441894,-2000.0,0.0001885,2]
[398962145,1766027441904,-215.0738,0.0001885,2]
[398962146,1766027441918,-1000.0,0.0001885,2]
[398962147,1766027441927,-707.38691887,0.0001885,2]
[398962148,1766027441936,-223.0315306,0.0001885,2]
[398962149,1766027441946,-1000.0,0.0001885,2]
[398962150,1766027441958,-231.28369723,0.0001885,2]
[398962151,1766027441968,-1000.0,0.0001885,2]
[398962152,1766027441978,-239.84119403,0.0001885,2]
[398962153,1766027441987,-574.12855637,0.0001885,2]
[398962154,1766027441996,-1000.0,0.0001885,2]
[398962155,1766027442005,-248.71531821,0.0001885,2]
[398962156,1766027442015,-1000.0,0.0001885,2]
[398962157,1766027442024,-269.09114723,0.0001885,2]
[398962158,1766027442032,-1000.0,0.0001885,2]
[398962159,1766027442042,-1000.0,0.0001885,2]
[398962160,1766027442051,-1000.0,0.0001885,2]
[398962161,1766027442060,-1000.0,0.0001885,2]
[398962162,1766027442070,-1000.0,0.0001885,2]
[398962163,1766027442079,-500.0,0.0001885,2]
[398962164,1766027442088,-1000.0,0.0001885,2]
[398962165,1766027442098,-500.0,0.0001885,2]
[398962166,1766027442116,-1000.0,0.0001885,2]
[398962167,1766027442127,-500.0,0.0001885,2]
[398962168,1766027442137,-155.24280406,0.0001885,2]
[398962169,1766027442146,-500.0,0.0001885,2]
[398962170,1766027442156,-500.0,0.0001885,2]
[398962171,1766027442166,-500.0,0.0001885,2]
[398962172,1766027442176,-500.0,0.0001885,2]
[398962173,1766027442185,-500.0,0.0001885,2]
[398962174,1766027442194,-500.0,0.0001885,2]
[398962175,1766027442204,-500.0,0.0001885,2]
[398962176,1766027442214,-500.0,0.0001885,2]
[398962177,1766027442223,-300.0,0.0001885,2]
[398962178,1766027442234,-1000.0,0.00018893,2]
[398962179,1766027442243,-516.0,0.00018895,2]
[398962180,1766027442253,-500.0,0.00018924,2]
[398962181,1766027442262,-179.355209,0.00018924,2]
[398962182,1766027442271,-159.415689,0.00018924,2]
[398962183,1766027442281,-605.0,0.00018976,2]
[398962184,1766027442291,-300.0,0.00019,2]
[398962185,1766027442300,-516.0,0.00019032,2]
[398962186,1766027442309,-224.68414456,0.00019082,2]
[398962187,1766027442319,-516.0,0.00019169,2]
[398962188,1766027442329,-165.75,0.00019199,2]
[398962189,1766027442338,-516.0,0.00019306,2]
[398962190,1766027442352,-151.52,0.00019349,2]
[398962191,1766027442362,-1344.9913614,0.00019365,2]
[398962192,1766027442371,-1692.1465397,0.00019371,2]
[398962193,1766027442381,-2360.0419739,0.00019397,2]
[398962194,1766027442391,-538.44222596,0.00019398,2]
[398962195,1766027442401,-12012.616894,0.0001941,2]
[398962196,1766027442412,-26928.5893551,0.00019413,2]
[398962197,1766027442422,-26670.0167088,0.00019421,2]
[398962198,1766027442433,-157.64,0.00019436,2]
[398962199,1766027442442,-1000.0,0.00019438,2]
[398962200,1766027442453,-516.0,0.00019443,2]
[398962201,1766027442463,-500.0,0.00019491,2]
[398962202,1766027442472,-500.0,0.00019491,2]
[398962203,1766027442482,-500.0,0.00019491,2]
[398962204,1766027442491,-609.80406949,0.00019491,2]
[398962205,1766027442501,-526.53,0.00019491,2]
[398962206,1766027442511,-500.0,0.00019491,2]
[398962207,1766027442521,-500.0,0.00019491,2]
[398962208,1766027442530,-520.82459061,0.00019491,2]
[398962209,1766027442540,-500.0,0.00019491,2]
[398962210,1766027442550,-151.0,0.00019492,2]
[398962211,1766027442560,-500.0,0.00019535,2]
[398962212,1766027442569,-157.1793748,0.00019557,2]
[398962213,1766027442580,-7959.20493029,0.00019559,2]
[398962214,1766027442590,-1600.0,0.00019574,2]
[398962215,1766027442600,-516.0,0.0001958,2]
[398962216,1766027442609,-517.3,0.00019588,2]
[398962217,1766027442620,-516.0,0.00019717,2]
[398962218,1766027442631,-330.13,0.0001973,2]
[398962219,1766027442643,-1387.358,0.00019851,2]
[398962220,1766027442652,-178.625,0.00019851,2]
[398962221,1766027442662,-516.95507039,0.00019854,2]
[398962222,1766027442672,-3001.62717676,0.00019935,2]
[398962223,1766027442684,-6134.18120636,0.0002,2]
[398962224,1766027442698,-1000.0,0.00020116,2]
[398962225,1766027442709,-670.93,0.00020187,2]
[398962226,1766027442718,-629.29113615,0.00020219,2]
[398962227,1766027442729,-311.1,0.00020219,2]
[398962228,1766027442739,-151.52,0.00020228,2]
[398962229,1766027442748,-7248.19034838,0.0002028,2]
[398962231,1766027442758,-11786.0,0.00020375,2]
[398962232,1766027442768,-1501.37628477,0.00020563,2]
[398962233,1766027442778,-2000.0,0.000207,2]
[398962234,1766027442787,-1000.0,0.00020795,2]
[398962235,1766027442798,-7395.88200855,0.00020964,2]
[398962236,1766027442807,-1000.0,0.00020992,2]
[398962237,1766027442817,-350.0,0.00021,2]
[398962238,1766027442827,-330.13,0.000211,2]
[398962239,1766027442836,-151.52,0.00021108,2]
[398962240,1766027442845,-500.0,0.0002126,2]
[398962241,1766027442855,-500.0,0.0002126,2]
[398962242,1766027442864,-500.0,0.0002126,2]
[398962243,1766027442873,-526.53,0.0002126,2]
[398962244,1766027442883,-500.0,0.0002126,2]
[398962245,1766027442892,-517.78932009,0.0002126,2]
[398962246,1766027442902,-500.0,0.0002126,2]
[398962247,1766027442917,-102841.88831696,0.0002126,2]
[398962248,1766027442926,-500.0,0.00021288,2]
[398962249,1766027442937,-160.31628987,0.00021344,2]
[398962250,1766027442947,-2000.0,0.000215,15]
[398962251,1766027442957,-846.92,0.000215,7]
[398962252,1766027442966,-150.0,0.000215,2]
[398962253,1766027442976,-154.42,0.00021529,2]
[398962254,1766027442988,-322.6107,0.00021588,2]
[398962255,1766027442999,-1000.0,0.000216,2]
[398962256,1766027443009,-516.17,0.00021648,2]
[398962257,1766027443018,-525.84,0.00021648,2]
[398962258,1766027443028,-1600.0,0.00021749,2]
[398962259,1766027443038,-1344.9913614,0.00021749,2]
[398962260,1766027443047,-1692.1465397,0.00021763,2]
[398962261,1766027443062,-785.74486028,0.0002178,2]
[398962262,1766027443072,-2360.0419739,0.00021815,2]
[398962263,1766027443081,-12012.616894,0.00021839,2]
[398962264,1766027443091,-26928.5893551,0.00021845,2]
[398962265,1766027443100,-167.33789326,0.00021862,2]
[398962266,1766027443110,-26670.0167088,0.00021862,2]
[398962267,1766027443120,-500.0,0.00021884,2]
[398962268,1766027443130,-500.0,0.00021899,2]
[398962269,1766027443139,-530.97,0.000219,2]
[398962270,1766027443150,-528.49,0.000219,2]
[398962271,1766027443160,-500.0,0.00021917,2]
[398962272,1766027443170,-5000.0,0.00021918,2]
[398962274,1766027443179,-11728.67099796,0.00021982,2]
[398962275,1766027443189,-151.52,0.00021987,2]
[398962276,1766027443199,-153.7273815,0.00022,2]
[398962277,1766027443209,-153.0,0.00022,2]
[398962278,1766027443219,-153.0,0.00022,2]
[398962279,1766027443229,-153.0,0.00022,2]
[398962280,1766027443240,-153.0,0.00022,2]
[398962281,1766027443250,-153.0,0.00022,2]
[398962282,1766027443259,-153.0,0.00022,2]
[398962283,1766027443269,-153.0,0.00022,2]
[398962284,1766027443279,-153.0,0.00022,2]
[398962285,1766027443295,-281.15150215,0.00022,2]
[398962286,1766027443313,-200.0,0.00022,2]
[398962287,1766027443323,-500.0,0.00022003,2]
[398962288,1766027443332,-500.0,0.00022003,2]
[398962289,1766027443342,-500.0,0.00022003,2]
[398962290,1766027443352,-526.53,0.00022003,2]
[398962291,1766027443362,-500.0,0.00022003,2]
[398962292,1766027443372,-509.9408523,0.00022003,2]
[398962293,1766027443381,-4486.23416492,0.00022076,2]
[398962294,1766027443391,-261.34609916,0.00022082,2]
[398962295,1766027443401,-500.0,0.00022191,3]
[398962296,1766027443411,-200.0,0.0002222,2]
[398962297,1766027443421,-7959.20493029,0.00022239,2]
[398962298,1766027443431,-154.42,0.00022239,2]
[398962299,1766027443441,-200.0,0.00022346,2]
[398962300,1766027443451,-200.0,0.00022346,2]
[398962301,1766027443461,-200.0,0.00022347,2]
[398962302,1766027443471,-200.0,0.00022347,2]
[398962303,1766027443481,-500.0,0.00022465,4]
[398962304,1766027443492,-500.0,0.00022661,2]
[398962305,1766027443502,-500.0,0.00022661,2]
[398962306,1766027443512,-500.0,0.00022661,2]
[398962307,1766027443521,-609.12108216,0.00022739,5]
[398962308,1766027443531,-284.18,0.00022741,2]
[398962309,1766027443541,-151.52,0.00022867,2]
[398962310,1766027443550,-7248.19034838,0.0002287,2]
[398962311,1766027443560,-154.42,0.0002295,2]